[Event "Early-Titled-Tuesday-Blitz-February-06-2024"]
[Site "Chess.com"]
[Date "2024.02.06"]
[Round "10"]
[White "aghasiyevkamal"]
[Black "vovachesss"]
[Result "0-1"]
[WhiteElo "2657"]
[BlackElo "2833"]
[TimeControl "180+1"]
[EndTime "9:55:56 PST"]
[Termination "vovachesss won by checkmate"]

1. d4 {[%clk 0:02:57.9]} 1... d5 {[%clk 0:02:57.9]} 2. c4 {[%clk 0:02:57.2]}
2... c6 {[%clk 0:02:58.6]} 3. Nf3 {[%clk 0:02:56.7]} 3... Nf6 {[%clk 0:02:59]}
4. Nc3 {[%clk 0:02:56.5]} 4... dxc4 {[%clk 0:02:59.4]} 5. a4 {[%clk 0:02:55.3]}
5... Bf5 {[%clk 0:02:59]} 6. e3 {[%clk 0:02:55.4]} 6... e6 {[%clk 0:02:56.2]} 7.
Bxc4 {[%clk 0:02:55.6]} 7... Bb4 {[%clk 0:02:56.9]} 8. O-O {[%clk 0:02:55.4]}
8... O-O {[%clk 0:02:57.6]} 9. Qe2 {[%clk 0:02:55.4]} 9... Bg6 {[%clk
0:02:56.9]} 10. Rd1 {[%clk 0:02:51.2]} 10... Nbd7 {[%clk 0:02:53.9]} 11. Bd3
{[%clk 0:02:43.8]} 11... Qa5 {[%clk 0:02:42.2]} 12. e4 {[%clk 0:02:39.5]} 12...
e5 {[%clk 0:02:32.2]} 13. Na2 {[%clk 0:02:35.5]} 13... Bd6 {[%clk 0:02:26.1]}
14. Bd2 {[%clk 0:02:28.4]} 14... Qc7 {[%clk 0:02:14.6]} 15. dxe5 {[%clk
0:01:44.3]} 15... Nxe5 {[%clk 0:02:14.7]} 16. Nxe5 {[%clk 0:01:43.3]} 16... Bxe5
{[%clk 0:02:15]} 17. h3 {[%clk 0:01:42.9]} 17... Bxb2 {[%clk 0:02:08.9]} 18.
Rab1 {[%clk 0:01:43.2]} 18... Bd4 {[%clk 0:02:04.6]} 19. Be3 {[%clk 0:01:27.3]}
19... Rad8 {[%clk 0:01:59.5]} 20. f3 {[%clk 0:01:20.6]} 20... Rfe8 {[%clk
0:01:58.2]} 21. Bc4 {[%clk 0:01:07]} 21... Bxe3+ {[%clk 0:01:27.3]} 22. Qxe3
{[%clk 0:01:07.3]} 22... b6 {[%clk 0:01:28.2]} 23. Nb4 {[%clk 0:01:05]} 23... c5
{[%clk 0:01:15]} 24. Nd5 {[%clk 0:01:01.9]} 24... Nxd5 {[%clk 0:01:14.7]} 25.
Bxd5 {[%clk 0:01:01.1]} 25... Qe5 {[%clk 0:01:13.3]} 26. Qb3 {[%clk 0:00:55.8]}
26... Rd6 {[%clk 0:01:00.1]} 27. a5 {[%clk 0:00:47.3]} 27... Red8 {[%clk
0:01:00.4]} 28. Qa3 {[%clk 0:00:43.6]} 28... h5 {[%clk 0:00:48.1]} 29. Rbc1
{[%clk 0:00:35.1]} 29... h4 {[%clk 0:00:45.2]} 30. axb6 {[%clk 0:00:33.1]} 30...
axb6 {[%clk 0:00:45.4]} 31. Qa7 {[%clk 0:00:33.2]} 31... Kh7 {[%clk 0:00:36.3]}
32. Rf1 {[%clk 0:00:27.8]} 32... Qf4 {[%clk 0:00:31.8]} 33. Qc7 {[%clk
0:00:24.5]} 33... R8d7 {[%clk 0:00:24.9]} 34. Qb8 {[%clk 0:00:22.6]} 34... Bh5
{[%clk 0:00:22.2]} 35. Rc4 {[%clk 0:00:21.1]} 35... Qe3+ {[%clk 0:00:16.5]} 36.
Rf2 {[%clk 0:00:18.4]} 36... Qe1+ {[%clk 0:00:14.9]} 37. Rf1 {[%clk 0:00:18]}
37... Qe3+ {[%clk 0:00:15.8]} 38. Kh1 {[%clk 0:00:15.7]} 38... Qe2 {[%clk
0:00:13.8]} 39. Rcc1 {[%clk 0:00:12.2]} 39... Rg6 {[%clk 0:00:12.7]} 40. Qh2
{[%clk 0:00:12.3]} 40... Rg3 {[%clk 0:00:11.7]} 41. Rfe1 {[%clk 0:00:12.4]}
41... Qd2 {[%clk 0:00:10.8]} 42. Red1 {[%clk 0:00:12.2]} 42... Qf4 {[%clk
0:00:10.5]} 43. Re1 {[%clk 0:00:09.5]} 43... Rd6 {[%clk 0:00:09.8]} 44. Bc4
{[%clk 0:00:07.3]} 44... Rd2 {[%clk 0:00:09.5]} 45. Bf1 {[%clk 0:00:07.5]} 45...
Bxf3 {[%clk 0:00:08.4]} 46. gxf3 {[%clk 0:00:05.6]} 46... Rxh2+ {[%clk
0:00:06.9]} 47. Kxh2 {[%clk 0:00:06.5]} 47... Rxh3+ {[%clk 0:00:07.1]} 48. Kg1
{[%clk 0:00:05.3]} 48... Qh2# {[%clk 0:00:07.6]} 0-1

[Event "Early-Titled-Tuesday-Blitz-February-06-2024"]
[Site "Chess.com"]
[Date "2024.02.06"]
[Round "10"]
[White "yobdc"]
[Black "unclear15"]
[Result "0-1"]
[WhiteElo "2592"]
[BlackElo "2445"]
[TimeControl "180+1"]
[EndTime "9:55:56 PST"]
[Termination "unclear15 won on time"]

1. d4 {[%clk 0:02:56.8]} 1... Nf6 {[%clk 0:02:58.8]} 2. c4 {[%clk 0:02:56.8]}
2... g6 {[%clk 0:02:57.6]} 3. f3 {[%clk 0:02:56.1]} 3... Bg7 {[%clk 0:02:58.5]}
4. e4 {[%clk 0:02:56.1]} 4... O-O {[%clk 0:02:58.9]} 5. Nc3 {[%clk 0:02:56.3]}
5... d6 {[%clk 0:02:57.4]} 6. Be3 {[%clk 0:02:55.9]} 6... Nc6 {[%clk 0:02:54.4]}
7. Nge2 {[%clk 0:02:55.3]} 7... e5 {[%clk 0:02:54.1]} 8. d5 {[%clk 0:02:55]}
8... Ne7 {[%clk 0:02:45.4]} 9. Qd2 {[%clk 0:02:49.3]} 9... Nd7 {[%clk
0:02:42.3]} 10. g4 {[%clk 0:02:48.9]} 10... f5 {[%clk 0:02:39.9]} 11. gxf5
{[%clk 0:02:48.2]} 11... gxf5 {[%clk 0:02:40.8]} 12. Rg1 {[%clk 0:02:45.4]}
12... f4 {[%clk 0:02:39.3]} 13. Bf2 {[%clk 0:02:45.6]} 13... Kh8 {[%clk
0:02:37.8]} 14. Bh3 {[%clk 0:02:43.3]} 14... Ng6 {[%clk 0:02:33.8]} 15. O-O-O
{[%clk 0:02:36.6]} 15... a6 {[%clk 0:02:32.9]} 16. Kb1 {[%clk 0:02:35]} 16...
Rb8 {[%clk 0:02:29.3]} 17. Rg2 {[%clk 0:02:03.2]} 17... b5 {[%clk 0:01:58.8]}
18. cxb5 {[%clk 0:02:02.7]} 18... axb5 {[%clk 0:01:59.7]} 19. Rdg1 {[%clk
0:02:02.6]} 19... Nc5 {[%clk 0:01:45.5]} 20. Bxc8 {[%clk 0:02:01]} 20... Qxc8
{[%clk 0:01:46.4]} 21. h4 {[%clk 0:01:48.4]} 21... b4 {[%clk 0:01:40.7]} 22. Nd1
{[%clk 0:01:48.5]} 22... Qa6 {[%clk 0:01:24.2]} 23. Bxc5 {[%clk 0:01:40.8]}
23... dxc5 {[%clk 0:01:22.4]} 24. h5 {[%clk 0:01:40.7]} 24... Nh4 {[%clk
0:01:10.7]} 25. Rxg7 {[%clk 0:01:13.8]} 25... Nxf3 {[%clk 0:01:09.9]} 26. Qc2
{[%clk 0:01:13.7]} 26... Nxg1 {[%clk 0:00:58]} 27. Rxg1 {[%clk 0:01:13.1]} 27...
f3 {[%clk 0:00:56.5]} 28. Nc1 {[%clk 0:01:03.3]} 28... c4 {[%clk 0:00:47.3]} 29.
b3 {[%clk 0:00:52.9]} 29... c3 {[%clk 0:00:41.1]} 30. Nf2 {[%clk 0:00:48.7]}
30... Rg8 {[%clk 0:00:34.2]} 31. Qd1 {[%clk 0:00:35.9]} 31... Qa3 {[%clk
0:00:19.1]} 32. Nfd3 {[%clk 0:00:18.7]} 32... Rg2 {[%clk 0:00:07.4]} 33. Rxg2
{[%clk 0:00:16.8]} 33... fxg2 {[%clk 0:00:08.3]} 34. Qg1 {[%clk 0:00:03.2]}
34... Rg8 {[%clk 0:00:07.7]} 35. h6 {[%clk 0:00:03.6]} 35... Qa6 {[%clk
0:00:07.5]} 36. Kc2 {[%clk 0:00:03.6]} 36... Qxh6 {[%clk 0:00:08]} 37. Ne2
{[%clk 0:00:03.3]} 37... Qh1 {[%clk 0:00:07.9]} 38. Qc5 {[%clk 0:00:02.4]} 38...
g1=Q {[%clk 0:00:08]} 39. Nxg1 {[%clk 0:00:02.7]} 39... Qxg1 {[%clk 0:00:08.7]}
40. Nxb4 {[%clk 0:00:02.9]} 40... Qxc5 {[%clk 0:00:08.4]} 41. Nd3 {[%clk
0:00:01.8]} 41... Qd4 {[%clk 0:00:08.4]} 42. b4 {[%clk 0:00:01.6]} 42... Rg2+
{[%clk 0:00:08.7]} 43. Kb3 {[%clk 0:00:01.7]} 43... Qxd3 {[%clk 0:00:09.3]} 44.
b5 {[%clk 0:00:02.6]} 44... Rb2+ {[%clk 0:00:08.7]} 45. Ka4 {[%clk 0:00:03.5]}
45... Qxb5+ {[%clk 0:00:09.1]} 0-1

[Event "Early-Titled-Tuesday-Blitz-February-06-2024"]
[Site "Chess.com"]
[Date "2024.02.06"]
[Round "10"]
[White "Zohid6"]
[Black "Mackster23"]
[Result "1-0"]
[WhiteElo "2883"]
[BlackElo "2747"]
[TimeControl "180+1"]
[EndTime "9:55:58 PST"]
[Termination "Zohid6 won on time"]

1. e4 {[%clk 0:03:00.9]} 1... c5 {[%clk 0:02:57.3]} 2. Nf3 {[%clk 0:03:00.5]}
2... d6 {[%clk 0:02:57.4]} 3. Bb5+ {[%clk 0:02:59.9]} 3... Nd7 {[%clk
0:02:57.2]} 4. c4 {[%clk 0:02:59.5]} 4... a6 {[%clk 0:02:56.4]} 5. Ba4 {[%clk
0:02:59.4]} 5... Nf6 {[%clk 0:02:56.3]} 6. Nc3 {[%clk 0:02:57.8]} 6... e6 {[%clk
0:02:56.7]} 7. O-O {[%clk 0:02:57.8]} 7... Be7 {[%clk 0:02:56.6]} 8. d4 {[%clk
0:02:58.1]} 8... cxd4 {[%clk 0:02:57.5]} 9. Qxd4 {[%clk 0:02:58.7]} 9... O-O
{[%clk 0:02:57.5]} 10. Bc2 {[%clk 0:02:58.3]} 10... Qc7 {[%clk 0:02:51]} 11. b3
{[%clk 0:02:53.4]} 11... b6 {[%clk 0:02:49.5]} 12. a4 {[%clk 0:02:53.2]} 12...
Bb7 {[%clk 0:02:49]} 13. Ba3 {[%clk 0:02:48.6]} 13... Rfd8 {[%clk 0:02:42]} 14.
Rad1 {[%clk 0:02:47.9]} 14... Ne5 {[%clk 0:02:38.5]} 15. Qe3 {[%clk 0:02:37]}
15... Ng6 {[%clk 0:02:13.3]} 16. Rd2 {[%clk 0:02:25.7]} 16... Rac8 {[%clk
0:01:37.8]} 17. Rfd1 {[%clk 0:02:22.3]} 17... d5 {[%clk 0:01:38.1]} 18. Bxe7
{[%clk 0:02:10.8]} 18... Nxe7 {[%clk 0:01:39]} 19. e5 {[%clk 0:02:06.4]} 19...
Nd7 {[%clk 0:01:37.1]} 20. Rd4 {[%clk 0:01:53.8]} 20... Nf8 {[%clk 0:01:19.8]}
21. Ne2 {[%clk 0:01:41.3]} 21... dxc4 {[%clk 0:01:13.6]} 22. bxc4 {[%clk
0:01:42.2]} 22... Nfg6 {[%clk 0:01:02.5]} 23. Rd6 {[%clk 0:01:21.1]} 23... Bxf3
{[%clk 0:00:26.8]} 24. gxf3 {[%clk 0:01:22]} 24... Re8 {[%clk 0:00:26.9]} 25.
Bd3 {[%clk 0:01:09.6]} 25... Nf5 {[%clk 0:00:26.7]} 26. Bxf5 {[%clk 0:01:03.7]}
26... exf5 {[%clk 0:00:27.6]} 27. f4 {[%clk 0:01:03.6]} 27... Qxc4 {[%clk
0:00:27.4]} 28. R1d4 {[%clk 0:01:02.3]} 28... Qc5 {[%clk 0:00:21]} 29. Ng3
{[%clk 0:01:01.6]} 29... Nh4 {[%clk 0:00:19]} 30. Qe2 {[%clk 0:00:47.6]} 30...
Qc1+ {[%clk 0:00:17.6]} 31. Nf1 {[%clk 0:00:46.4]} 31... Rc3 {[%clk 0:00:14.9]}
32. Rd8 {[%clk 0:00:39.5]} 32... Rc8 {[%clk 0:00:15.5]} 33. Rxe8+ {[%clk
0:00:36.9]} 33... Rxe8 {[%clk 0:00:15.3]} 34. Qh5 {[%clk 0:00:36.9]} 34... Qc5
{[%clk 0:00:09.1]} 35. Rd7 {[%clk 0:00:36.1]} 35... Ng6 {[%clk 0:00:08.5]} 36.
Qxf5 {[%clk 0:00:36.3]} 36... Qc4 {[%clk 0:00:06.5]} 37. Ne3 {[%clk 0:00:15.9]}
37... Qxf4 {[%clk 0:00:06.3]} 38. Qxf4 {[%clk 0:00:16.2]} 38... Nxf4 {[%clk
0:00:05.8]} 39. Ra7 {[%clk 0:00:13.6]} 39... g6 {[%clk 0:00:04.9]} 40. Ng4
{[%clk 0:00:12.4]} 40... Re6 {[%clk 0:00:03.8]} 41. Rxa6 {[%clk 0:00:10.6]}
41... h5 {[%clk 0:00:03.9]} 42. Nf6+ {[%clk 0:00:10.4]} 42... Kg7 {[%clk
0:00:04.4]} 43. Nd7 {[%clk 0:00:11]} 43... Nd3 {[%clk 0:00:04.3]} 44. Rxb6
{[%clk 0:00:06.4]} 44... Rd6 {[%clk 0:00:02.9]} 45. Rxd6 {[%clk 0:00:06.1]} 1-0

[Event "Early-Titled-Tuesday-Blitz-February-06-2024"]
[Site "Chess.com"]
[Date "2024.02.06"]
[Round "10"]
[White "ljuks68"]
[Black "TokChess"]
[Result "1-0"]
[WhiteElo "2434"]
[BlackElo "2553"]
[TimeControl "180+1"]
[EndTime "9:56:02 PST"]
[Termination "ljuks68 won on time"]

1. e4 {[%clk 0:03:00.9]} 1... e6 {[%clk 0:02:59.1]} 2. d4 {[%clk 0:03:00.6]}
2... d5 {[%clk 0:02:58.8]} 3. Nc3 {[%clk 0:03:00.8]} 3... Nf6 {[%clk 0:02:57.9]}
4. Bg5 {[%clk 0:03:00.2]} 4... Be7 {[%clk 0:02:55.5]} 5. e5 {[%clk 0:03:00.1]}
5... Nfd7 {[%clk 0:02:55.4]} 6. h4 {[%clk 0:03:00.5]} 6... b6 {[%clk 0:02:52.7]}
7. Qg4 {[%clk 0:02:59.1]} 7... Kf8 {[%clk 0:02:48.7]} 8. Bxe7+ {[%clk
0:02:52.8]} 8... Qxe7 {[%clk 0:02:48.9]} 9. O-O-O {[%clk 0:02:53.3]} 9... Ba6
{[%clk 0:02:45.8]} 10. f4 {[%clk 0:02:47.3]} 10... h5 {[%clk 0:02:44.4]} 11. Qh3
{[%clk 0:02:43.5]} 11... g6 {[%clk 0:02:40.2]} 12. Nf3 {[%clk 0:02:41.6]} 12...
Ke8 {[%clk 0:02:29.3]} 13. g4 {[%clk 0:02:41]} 13... Kd8 {[%clk 0:02:26.2]} 14.
gxh5 {[%clk 0:02:24.2]} 14... Rxh5 {[%clk 0:02:27.1]} 15. Ne2 {[%clk 0:02:24.4]}
15... c5 {[%clk 0:02:22.2]} 16. Ng3 {[%clk 0:02:23.5]} 16... Rh8 {[%clk
0:02:22.4]} 17. h5 {[%clk 0:02:21.1]} 17... gxh5 {[%clk 0:02:19.4]} 18. Nxh5
{[%clk 0:02:20]} 18... Kc7 {[%clk 0:02:14.1]} 19. Kb1 {[%clk 0:01:59.2]} 19...
Bxf1 {[%clk 0:01:56.1]} 20. Qxf1 {[%clk 0:01:58.2]} 20... Nc6 {[%clk 0:01:57]}
21. c4 {[%clk 0:01:53.3]} 21... dxc4 {[%clk 0:01:33]} 22. Qxc4 {[%clk
0:01:51.8]} 22... Kb7 {[%clk 0:01:33.6]} 23. d5 {[%clk 0:01:49]} 23... Na5
{[%clk 0:01:23]} 24. Qe4 {[%clk 0:01:47.7]} 24... exd5 {[%clk 0:01:14.2]} 25.
Rxd5 {[%clk 0:01:28.8]} 25... Kc7 {[%clk 0:01:09.2]} 26. Rhd1 {[%clk 0:01:23.6]}
26... Rad8 {[%clk 0:01:02.4]} 27. Ng3 {[%clk 0:01:20.8]} 27... Nc6 {[%clk
0:00:41.4]} 28. Nf5 {[%clk 0:01:13.9]} 28... Nf6 {[%clk 0:00:41.8]} 29. Qa4
{[%clk 0:00:48.1]} 29... Qe6 {[%clk 0:00:30.3]} 30. Rd6 {[%clk 0:00:44]} 30...
Qxf5+ {[%clk 0:00:30]} 31. Ka1 {[%clk 0:00:39.1]} 31... Rxd6 {[%clk 0:00:19.3]}
32. exd6+ {[%clk 0:00:39.4]} 32... Kb7 {[%clk 0:00:17.4]} 33. Ng5 {[%clk
0:00:24.9]} 33... Rd8 {[%clk 0:00:08.6]} 34. Nxf7 {[%clk 0:00:21]} 34... Rd7
{[%clk 0:00:09]} 35. Ng5 {[%clk 0:00:13.5]} 35... Nd4 {[%clk 0:00:06.8]} 36. a3
{[%clk 0:00:11.9]} 36... Rxd6 {[%clk 0:00:06.5]} 37. Nf7 {[%clk 0:00:09.5]}
37... Rd7 {[%clk 0:00:04.3]} 38. Ne5 {[%clk 0:00:08.2]} 38... Rc7 {[%clk
0:00:04.9]} 39. Rg1 {[%clk 0:00:07.2]} 39... Qe6 {[%clk 0:00:04]} 40. Rg6 {[%clk
0:00:06.6]} 40... Qf5 {[%clk 0:00:04.3]} 41. Qd1 {[%clk 0:00:03.3]} 41... Qxf4
{[%clk 0:00:03.6]} 42. Qh1+ {[%clk 0:00:03.5]} 42... Qe4 {[%clk 0:00:03.8]} 43.
Qh2 {[%clk 0:00:02.2]} 43... Nd5 {[%clk 0:00:03.8]} 44. Nc4 {[%clk 0:00:01.2]}
44... Ne3 {[%clk 0:00:02.8]} 45. Nd6+ {[%clk 0:00:01.2]} 45... Ka6 {[%clk
0:00:02.8]} 46. Nxe4 {[%clk 0:00:02.1]} 46... Nf3 {[%clk 0:00:03]} 47. Qe2+
{[%clk 0:00:02.3]} 1-0

[Event "Early-Titled-Tuesday-Blitz-February-06-2024"]
[Site "Chess.com"]
[Date "2024.02.06"]
[Round "10"]
[White "FredddieCroderg"]
[Black "Nf3c5"]
[Result "0-1"]
[WhiteElo "2379"]
[BlackElo "2554"]
[TimeControl "180+1"]
[EndTime "9:56:03 PST"]
[Termination "Nf3c5 won by checkmate"]

1. e4 {[%clk 0:02:23.3]} 1... c5 {[%clk 0:02:55.4]} 2. c3 {[%clk 0:02:22.5]}
2... Qa5 {[%clk 0:02:53.8]} 3. Nf3 {[%clk 0:02:21]} 3... Nc6 {[%clk 0:02:52.7]}
4. Be2 {[%clk 0:02:20.9]} 4... Nf6 {[%clk 0:02:35.9]} 5. Qc2 {[%clk 0:02:19.4]}
5... d6 {[%clk 0:02:29.9]} 6. O-O {[%clk 0:02:19.3]} 6... Bg4 {[%clk 0:02:30.3]}
7. h3 {[%clk 0:02:16.8]} 7... Bh5 {[%clk 0:02:29.4]} 8. Qb3 {[%clk 0:02:15.1]}
8... Qc7 {[%clk 0:02:22.8]} 9. d4 {[%clk 0:02:07.5]} 9... Bxf3 {[%clk
0:01:38.7]} 10. Bxf3 {[%clk 0:02:06.4]} 10... cxd4 {[%clk 0:01:37.9]} 11. cxd4
{[%clk 0:02:06.4]} 11... Nxd4 {[%clk 0:01:34.7]} 12. Qa4+ {[%clk 0:02:06.3]}
12... Nc6 {[%clk 0:01:33.5]} 13. Bg5 {[%clk 0:02:06.2]} 13... e6 {[%clk
0:01:32.3]} 14. Nc3 {[%clk 0:02:03.4]} 14... Be7 {[%clk 0:01:30.6]} 15. Nb5
{[%clk 0:01:58.6]} 15... Qb6 {[%clk 0:01:30.6]} 16. e5 {[%clk 0:01:49.8]} 16...
dxe5 {[%clk 0:01:25.7]} 17. Be3 {[%clk 0:01:42.9]} 17... Qd8 {[%clk 0:01:19.4]}
18. Rfd1 {[%clk 0:01:18.4]} 18... Qb8 {[%clk 0:01:14.9]} 19. Rac1 {[%clk
0:01:05.5]} 19... O-O {[%clk 0:01:06.9]} 20. Rxc6 {[%clk 0:01:00.6]} 20... bxc6
{[%clk 0:01:07.8]} 21. Bxc6 {[%clk 0:01:00.2]} 21... a6 {[%clk 0:00:53]} 22. Nc3
{[%clk 0:00:39.8]} 22... Qxb2 {[%clk 0:00:49.3]} 23. Bxa8 {[%clk 0:00:39.6]}
23... Rxa8 {[%clk 0:00:47.3]} 24. Qc6 {[%clk 0:00:36]} 24... Rb8 {[%clk
0:00:37.8]} 25. Qc7 {[%clk 0:00:34.8]} 25... Re8 {[%clk 0:00:35.2]} 26. Bg5
{[%clk 0:00:29.2]} 26... h6 {[%clk 0:00:26.9]} 27. Bxf6 {[%clk 0:00:22.3]} 27...
Bxf6 {[%clk 0:00:27.8]} 28. Ne4 {[%clk 0:00:22.3]} 28... Qxa2 {[%clk 0:00:26.4]}
29. Rd7 {[%clk 0:00:15.4]} 29... Qb1+ {[%clk 0:00:23.6]} 30. Kh2 {[%clk
0:00:15.4]} 30... Qxe4 {[%clk 0:00:24.2]} 31. Rxf7 {[%clk 0:00:15.8]} 31... Qg6
{[%clk 0:00:16]} 32. Rd7 {[%clk 0:00:14.8]} 32... e4 {[%clk 0:00:15.3]} 33. g3
{[%clk 0:00:13.3]} 33... Qf5 {[%clk 0:00:15.3]} 34. Kg1 {[%clk 0:00:12.9]} 34...
Rf8 {[%clk 0:00:15.6]} 35. Qa7 {[%clk 0:00:11.4]} 35... a5 {[%clk 0:00:11.1]}
36. h4 {[%clk 0:00:11.6]} 36... a4 {[%clk 0:00:10.6]} 37. h5 {[%clk 0:00:11.8]}
37... a3 {[%clk 0:00:10.3]} 38. Rd1 {[%clk 0:00:10.8]} 38... Bb2 {[%clk
0:00:07.6]} 39. Rd7 {[%clk 0:00:07.7]} 39... Qxh5 {[%clk 0:00:05.4]} 40. Rb7
{[%clk 0:00:04.2]} 40... Qd1+ {[%clk 0:00:05.1]} 41. Kg2 {[%clk 0:00:03.7]}
41... Qf3+ {[%clk 0:00:05.7]} 42. Kh3 {[%clk 0:00:03.3]} 42... Qh1+ {[%clk
0:00:05.3]} 43. Kg4 {[%clk 0:00:02.9]} 43... Qf3+ {[%clk 0:00:03.3]} 44. Kh3
{[%clk 0:00:02.9]} 44... Qf5+ {[%clk 0:00:03.8]} 45. Kh2 {[%clk 0:00:02.6]}
45... e3 {[%clk 0:00:04.7]} 46. Rxb2 {[%clk 0:00:01.2]} 46... axb2 {[%clk
0:00:04.1]} 47. Qxe3 {[%clk 0:00:01.8]} 47... Qxf2+ {[%clk 0:00:04.2]} 48. Qxf2
{[%clk 0:00:01.7]} 48... Rxf2+ {[%clk 0:00:05.1]} 49. Kh1 {[%clk 0:00:02.4]}
49... Rc2 {[%clk 0:00:06]} 50. g4 {[%clk 0:00:03]} 50... b1=Q# {[%clk
0:00:06.8]} 0-1

[Event "Early-Titled-Tuesday-Blitz-February-06-2024"]
[Site "Chess.com"]
[Date "2024.02.06"]
[Round "10"]
[White "salomez"]
[Black "Actuary44"]
[Result "1/2-1/2"]
[WhiteElo "2312"]
[BlackElo "2475"]
[TimeControl "180+1"]
[EndTime "9:56:03 PST"]
[Termination "Game drawn by agreement"]

1. d4 {[%clk 0:03:00.9]} 1... Nf6 {[%clk 0:02:59.5]} 2. Nc3 {[%clk 0:02:57.3]}
2... d5 {[%clk 0:02:57.9]} 3. Bf4 {[%clk 0:02:56.7]} 3... g6 {[%clk 0:02:58.1]}
4. e3 {[%clk 0:02:53.1]} 4... c6 {[%clk 0:02:57.3]} 5. Nf3 {[%clk 0:02:49.5]}
5... Bg7 {[%clk 0:02:57.6]} 6. Be2 {[%clk 0:02:47.7]} 6... O-O {[%clk
0:02:57.7]} 7. h3 {[%clk 0:02:47.9]} 7... Nfd7 {[%clk 0:02:53.7]} 8. O-O {[%clk
0:02:46.7]} 8... f6 {[%clk 0:02:54.2]} 9. Bg3 {[%clk 0:02:43.6]} 9... e5 {[%clk
0:02:54.2]} 10. dxe5 {[%clk 0:02:43.1]} 10... fxe5 {[%clk 0:02:55.1]} 11. e4
{[%clk 0:02:41.6]} 11... d4 {[%clk 0:02:53.7]} 12. Bc4+ {[%clk 0:02:41.6]} 12...
Kh8 {[%clk 0:02:53.3]} 13. Ne2 {[%clk 0:02:38.2]} 13... Nb6 {[%clk 0:02:49.4]}
14. Bb3 {[%clk 0:02:34.8]} 14... Qe7 {[%clk 0:02:45]} 15. Bh4 {[%clk 0:02:18.1]}
15... Bf6 {[%clk 0:02:39.5]} 16. Bxf6+ {[%clk 0:02:17.5]} 16... Qxf6 {[%clk
0:02:39.5]} 17. c3 {[%clk 0:02:09.9]} 17... Bxh3 {[%clk 0:02:34.7]} 18. cxd4
{[%clk 0:02:09.8]} 18... Bxg2 {[%clk 0:02:33]} 19. Nxe5 {[%clk 0:02:00.4]} 19...
Bxf1 {[%clk 0:02:26.1]} 20. Qxf1 {[%clk 0:02:00.2]} 20... N8d7 {[%clk 0:02:24]}
21. f4 {[%clk 0:01:59.3]} 21... Nxe5 {[%clk 0:02:18.7]} 22. dxe5 {[%clk
0:01:58.7]} 22... Qh4 {[%clk 0:02:18.6]} 23. Qf2 {[%clk 0:01:42.7]} 23... Qxf2+
{[%clk 0:02:14.5]} 24. Kxf2 {[%clk 0:01:42.5]} 24... Rae8 {[%clk 0:02:06.8]} 25.
Ke3 {[%clk 0:01:24.8]} 25... g5 {[%clk 0:02:06.4]} 26. e6 {[%clk 0:01:22.6]}
26... gxf4+ {[%clk 0:02:07.3]} 27. Nxf4 {[%clk 0:01:22.5]} 27... Rf6 {[%clk
0:01:54.1]} 28. Rh1 {[%clk 0:01:13.1]} 28... c5 {[%clk 0:01:48.4]} 29. e5 {[%clk
0:01:12.7]} 29... Rxf4 {[%clk 0:01:46.9]} 30. Kxf4 {[%clk 0:01:10.2]} 30... c4
{[%clk 0:01:46.2]} 31. Bc2 {[%clk 0:01:10.3]} 31... Nd5+ {[%clk 0:01:39.4]} 32.
Kg3 {[%clk 0:00:25.9]} 32... Re7 {[%clk 0:01:06.5]} 33. Be4 {[%clk 0:00:23.2]}
33... Nb4 {[%clk 0:00:55.6]} 34. Rxh7+ {[%clk 0:00:19.4]} 34... Rxh7 {[%clk
0:00:49]} 35. Bxh7 {[%clk 0:00:20.3]} 35... Kg7 {[%clk 0:00:42.8]} 36. e7 {[%clk
0:00:19]} 36... Kf7 {[%clk 0:00:42]} 37. Bg8+ {[%clk 0:00:12.5]} 37... Kxe7
{[%clk 0:00:38.8]} 38. Bxc4 {[%clk 0:00:13.4]} 38... a6 {[%clk 0:00:25.5]} 39.
Kf4 {[%clk 0:00:13.6]} 39... b5 {[%clk 0:00:25]} 40. a3 {[%clk 0:00:10.6]} 40...
Nc6 {[%clk 0:00:19]} 41. Bd5 {[%clk 0:00:09.9]} 41... Nd4 {[%clk 0:00:17.7]} 42.
Be4 {[%clk 0:00:02.6]} 42... Ne6+ {[%clk 0:00:16.3]} 43. Kf5 {[%clk 0:00:02.8]}
43... Nc5 {[%clk 0:00:17.2]} 44. Kf4 {[%clk 0:00:02.5]} 44... a5 {[%clk
0:00:17.7]} 45. b4 {[%clk 0:00:02.7]} 45... axb4 {[%clk 0:00:15.7]} 46. axb4
{[%clk 0:00:03.6]} 46... Na6 {[%clk 0:00:16.6]} 47. Bd3 {[%clk 0:00:03.8]} 47...
Nxb4 {[%clk 0:00:15.8]} 48. Bxb5 {[%clk 0:00:04.7]} 48... Nd5+ {[%clk
0:00:15.5]} 49. Kf5 {[%clk 0:00:04.3]} 49... Ne3+ {[%clk 0:00:14.8]} 50. Ke4
{[%clk 0:00:04.3]} 50... Ng4 {[%clk 0:00:15]} 51. Kf4 {[%clk 0:00:03.9]} 1/2-1/2